fUST/lending_fUST_20250604
["ID","MTS","AMOUNT","RATE_DAILY","PERIOD"]
[364083621,1748992245963,-153.0,0.00024137,2]
[364083623,1748992245973,-572.6068135,0.00024137,2]
[364083625,1748992245983,-153.0,0.00024137,2]
[364083627,1748992245992,-153.0,0.00024137,2]
[364083629,1748992246002,-153.0,0.00024137,2]
[364083631,1748992246012,-330.0247345,0.00024137,2]
[364083633,1748992246022,-151.0,0.00024143,7]
[364083635,1748992246032,-154.074998,0.00024143,7]
[364083637,1748992246041,-151.0,0.00024143,7]
[364083639,1748992246050,-259.408792,0.00024143,7]
[364083641,1748992246059,-151.0,0.00024143,7]
[364083643,1748992246069,-151.0,0.00024143,7]
[364083645,1748992246078,-151.0,0.00024143,7]
[364083647,1748992246087,-151.0,0.00024143,7]
[364083649,1748992246098,-211.9849,0.00024143,7]
[364083650,1748992246107,-211.9849,0.00024143,7]
[364083652,1748992246117,-211.9849,0.00024143,7]
[364083654,1748992246126,-211.9849,0.00024143,7]
[364083656,1748992246136,-211.9849,0.00024143,7]
[364083658,1748992246145,-211.9849,0.00024143,7]
[364083660,1748992246156,-211.9849,0.00024143,7]
[364083662,1748992246165,-211.9849,0.00024143,7]
[364083664,1748992246174,-211.9849,0.00024143,7]
[364083666,1748992246184,-211.9849,0.00024143,7]
[364083668,1748992246193,-211.9849,0.00024143,7]
[364083670,1748992246203,-211.9849,0.00024143,7]
[364083672,1748992246212,-211.9849,0.00024143,7]
[364083674,1748992246221,-211.9849,0.00024143,7]
[364083676,1748992246231,-211.9849,0.00024143,7]
[364083678,1748992246240,-211.9849,0.00024143,7]
[364083680,1748992246249,-211.9849,0.00024143,7]
[364083682,1748992246259,-211.9849,0.00024143,7]
[364083684,1748992246269,-211.9849,0.00024143,7]
[364083686,1748992246278,-211.984894,0.00024143,7]
[364083688,1748992246288,-258.20092,0.00024143,7]
[364083690,1748992246298,-258.20092,0.00024143,7]
[364083692,1748992246308,-258.20092,0.00024143,7]
[364083694,1748992246317,-258.20092,0.00024143,7]
[364083696,1748992246327,-258.20092,0.00024143,7]
[364083698,1748992246336,-258.20092,0.00024143,7]
[364083700,1748992246346,-258.20092,0.00024143,7]
[364083702,1748992246356,-258.20092,0.00024143,7]
[364083704,1748992246366,-258.20092,0.00024143,7]
[364083706,1748992246376,-258.20092,0.00024143,7]
[364083708,1748992246385,-258.20092,0.00024143,7]
[364083710,1748992246396,-258.20092,0.00024143,7]
[364083712,1748992246407,-258.20092,0.00024143,7]
[364083715,1748992246416,-258.20092,0.00024143,7]
[364083717,1748992246426,-258.20092,0.00024143,7]
[364083718,1748992246436,-258.20092,0.00024143,7]
[364083720,1748992246446,-258.20092,0.00024143,7]
[364083722,1748992246456,-258.20092,0.00024143,7]
[364083724,1748992246466,-258.20092,0.00024143,7]
[364083727,1748992246476,-258.200914,0.00024143,7]
[364083729,1748992246486,-151.0,0.00024143,7]
[364083730,1748992246495,-151.0,0.00024143,7]
[364083732,1748992246505,-153.731127,0.00024143,7]
[364083734,1748992246515,-151.0,0.00024143,7]
[364083737,1748992246524,-151.0,0.00024143,7]
[364083739,1748992246535,-151.0,0.00024143,7]
[364083741,1748992246544,-151.0,0.00024143,7]
[364083743,1748992246554,-259.762291,0.00024143,7]
[364083745,1748992246564,-151.0,0.00024143,7]
[364083747,1748992246575,-151.0,0.00024143,7]
[364083748,1748992246585,-289.63493,0.00024143,7]
[364083751,1748992246595,-151.0,0.00024143,7]
[364083753,1748992246604,-151.0,0.00024143,7]
[364083754,1748992246614,-151.0,0.00024143,7]
[364083756,1748992246623,-151.0,0.00024143,7]
[364083758,1748992246633,-151.0,0.00024143,7]
[364083760,1748992246643,-151.0,0.00024143,7]
[364083762,1748992246653,-151.0,0.00024143,7]
[364083764,1748992246663,-151.0,0.00024143,7]
[364083766,1748992246673,-151.0,0.00024143,7]
[364083769,1748992246683,-151.000001,0.00024143,7]
[364083771,1748992246693,-168.393788,0.00024143,7]
[364083773,1748992246702,-168.393788,0.00024143,7]
[364083775,1748992246712,-168.393788,0.00024143,7]
[364083777,1748992246722,-168.393788,0.00024143,7]
[364083778,1748992246734,-168.393788,0.00024143,7]
[364083780,1748992246744,-168.393788,0.00024143,7]
[364083782,1748992246754,-168.393788,0.00024143,7]
[364083784,1748992246763,-168.393788,0.00024143,7]
[364083786,1748992246774,-168.393788,0.00024143,7]
[364083788,1748992246784,-168.393788,0.00024143,7]
[364083791,1748992246795,-168.393788,0.00024143,7]
[364083793,1748992246806,-168.393788,0.00024143,7]
[364083794,1748992246815,-168.393788,0.00024143,7]
[364083797,1748992246825,-168.393788,0.00024143,7]
[364083798,1748992246835,-168.393788,0.00024143,7]
[364083800,1748992246845,-168.393788,0.00024143,7]
[364083802,1748992246854,-168.393788,0.00024143,7]
[364083805,1748992246863,-168.393788,0.00024143,7]
[364083806,1748992246873,-168.393788,0.00024143,7]
[364083808,1748992246882,-168.39378,0.00024143,7]
[364083811,1748992246892,-151.0,0.00024143,7]
[364083813,1748992246902,-151.0,0.00024143,7]
[364083824,1748992246993,-151.0,0.00024143,7]
[364083827,1748992247012,-151.0,0.00024143,7]
[364083829,1748992247022,-151.0,0.00024143,7]
[364083831,1748992247031,-151.0,0.00024143,7]
[364083833,1748992247040,-151.0,0.00024143,7]
[364083835,1748992247048,-151.0,0.00024143,7]
[364083837,1748992247057,-151.0,0.00024143,7]
[364083839,1748992247067,-256.578175,0.00024143,7]
[364083841,1748992247076,-151.756118,0.00024143,7]
[364083843,1748992247085,-151.0,0.00024143,7]
[364083845,1748992247094,-151.0,0.00024143,7]
[364083847,1748992247106,-151.0,0.00024143,7]
[364083849,1748992247116,-151.0,0.00024143,7]
[364083851,1748992247125,-151.0,0.00024143,7]
[364083853,1748992247135,-151.0,0.00024143,7]
[364083855,1748992247145,-151.0,0.00024143,7]
[364083857,1748992247155,-151.0,0.00024143,7]
[364083859,1748992247164,-151.0,0.00024143,7]
[364083861,1748992247174,-155.144783,0.00024143,7]
[364083863,1748992247184,-155.0,0.00024145,2]
[364083865,1748992247194,-151.944216,0.00024147,7]
[364083867,1748992247204,-151.0,0.00024147,7]
[364083869,1748992247214,-151.0,0.00024147,7]
[364083871,1748992247224,-225.717449,0.00024147,7]
[364083873,1748992247235,-151.0,0.00024147,7]
[364083875,1748992247244,-151.0,0.00024147,7]
[364083877,1748992247254,-151.0,0.00024147,7]
[364083879,1748992247263,-205.081933,0.00024147,2]
[364083881,1748992247273,-205.081933,0.00024147,2]
[364083883,1748992247282,-205.081933,0.00024147,2]
[364083885,1748992247291,-205.081933,0.00024147,2]
[364083887,1748992247300,-205.081933,0.00024147,2]
[364083889,1748992247310,-205.081933,0.00024147,2]
[364083891,1748992247319,-205.081933,0.00024147,2]
[364083893,1748992247328,-205.081933,0.00024147,2]
[364083895,1748992247337,-205.081933,0.00024147,2]
[364083897,1748992247347,-205.081933,0.00024147,2]
[364083899,1748992247356,-205.081933,0.00024147,2]
[364083901,1748992247366,-205.081933,0.00024147,2]
[364083903,1748992247376,-205.081933,0.00024147,2]
[364083905,1748992247386,-205.081933,0.00024147,2]
[364083907,1748992247396,-205.081933,0.00024147,2]
[364083909,1748992247405,-205.081933,0.00024147,2]
[364083911,1748992247415,-205.081933,0.00024147,2]
[364083913,1748992247425,-205.081933,0.00024147,2]
[364083915,1748992247435,-205.081933,0.00024147,2]
[364083917,1748992247444,-163.407306,0.00024147,7]
[364083919,1748992247454,-163.407306,0.00024147,7]
[364083921,1748992247463,-205.081937,0.00024147,2]
[364083923,1748992247472,-163.407306,0.00024147,7]
[364083925,1748992247484,-163.407306,0.00024147,7]
[364083927,1748992247494,-163.407306,0.00024147,7]
[364083929,1748992247503,-163.407306,0.00024147,7]
[364083931,1748992247513,-163.407306,0.00024147,7]
[364083933,1748992247522,-163.407306,0.00024147,7]
[364083935,1748992247531,-163.407306,0.00024147,7]
[364083937,1748992247541,-163.407306,0.00024147,7]
[364083939,1748992247550,-163.407306,0.00024147,7]
[364083940,1748992247559,-163.407306,0.00024147,7]
[364083941,1748992247569,-163.407306,0.00024147,7]
[364083942,1748992247578,-163.407306,0.00024147,7]
[364083943,1748992247588,-158.122764,0.00024147,7]
[364083944,1748992247597,-163.407306,0.00024147,7]
[364083945,1748992247607,-158.122764,0.00024147,7]
[364083946,1748992247616,-158.122764,0.00024147,7]
[364083947,1748992247626,-163.407306,0.00024147,7]
[364083948,1748992247635,-163.407306,0.00024147,7]
[364083949,1748992247645,-163.407306,0.00024147,7]
[364083950,1748992247655,-163.407306,0.00024147,7]
[364083951,1748992247664,-163.407302,0.00024147,7]
[364083952,1748992247674,-741.579054,0.00024147,7]
[364083954,1748992247683,-741.579054,0.00024147,7]
[364083955,1748992247692,-741.579054,0.00024147,7]
[364083957,1748992247702,-741.579054,0.00024147,7]
[364083959,1748992247712,-741.579054,0.00024147,7]
[364083961,1748992247724,-741.579054,0.00024147,7]
[364083963,1748992247735,-741.579054,0.00024147,7]
[364083965,1748992247744,-741.579054,0.00024147,7]
[364083967,1748992247753,-741.579054,0.00024147,7]
[364083969,1748992247763,-741.579054,0.00024147,7]
[364083971,1748992247773,-741.579054,0.00024147,7]
[364083973,1748992247783,-741.579054,0.00024147,7]
[364083975,1748992247792,-741.579054,0.00024147,7]
[364083977,1748992247803,-741.579054,0.00024147,7]
[364083979,1748992247813,-741.579054,0.00024147,7]
[364083981,1748992247823,-741.579054,0.00024147,7]
[364083983,1748992247832,-741.579054,0.00024147,7]
[364083985,1748992247841,-158.122764,0.00024147,7]
[364083987,1748992247851,-741.579054,0.00024147,7]
[364083989,1748992247860,-741.579054,0.00024147,7]
[364083991,1748992247871,-158.122764,0.00024147,7]
[364083993,1748992247881,-741.579057,0.00024147,7]
[364083995,1748992247891,-158.122764,0.00024147,7]
[364083998,1748992247901,-158.122764,0.00024147,7]
[364083999,1748992247912,-158.122764,0.00024147,7]
[364084001,1748992247922,-158.122764,0.00024147,7]
[364084003,1748992247932,-158.122764,0.00024147,7]
[364084005,1748992247942,-158.122764,0.00024147,7]
[364084007,1748992247951,-158.122764,0.00024147,7]
[364084009,1748992247961,-158.122764,0.00024147,7]
[364084011,1748992247971,-158.122764,0.00024147,7]
[364084013,1748992247981,-158.122764,0.00024147,7]
[364084015,1748992247991,-158.122764,0.00024147,7]
[364084018,1748992248000,-158.122764,0.00024147,7]
[364084020,1748992248010,-158.122764,0.00024147,7]
[364084021,1748992248020,-158.122764,0.00024147,7]
[364084023,1748992248029,-158.122768,0.00024147,7]
[364084025,1748992248038,-151.0,0.00024147,7]
[364084027,1748992248048,-152.97156,0.00024147,7]
[364084029,1748992248057,-151.0,0.00024147,7]
[364084031,1748992248067,-151.0,0.00024147,7]
[364084033,1748992248078,-151.0,0.00024147,7]
[364084035,1748992248087,-151.0,0.00024147,7]
[364084037,1748992248097,-151.0,0.00024147,7]
[364084039,1748992248107,-151.0,0.00024147,7]
[364084041,1748992248117,-151.0,0.00024147,7]
[364084043,1748992248127,-151.0,0.00024147,7]
[364084045,1748992248136,-151.0,0.00024147,7]
[364084047,1748992248146,-151.0,0.00024147,7]
[364084049,1748992248155,-151.0,0.00024147,7]
[364084051,1748992248166,-151.0,0.00024147,7]
[364084053,1748992248176,-277.106872,0.00024147,7]
[364084055,1748992248186,-153.0,0.00024147,3]
[364084057,1748992248195,-153.0,0.00024147,3]
[364084059,1748992248204,-153.0,0.00024147,3]
[364084061,1748992248214,-153.0,0.00024147,3]
[364084063,1748992248223,-197.54148389,0.00024147,2]
[364084065,1748992248234,-197.54148389,0.00024147,2]
[364084066,1748992248244,-151.0,0.00024148,7]
[364084068,1748992248254,-206.0,0.0002415,2]
[364084070,1748992248264,-500.0,0.0002415,2]
[364084072,1748992248274,-500.0,0.0002415,2]
[364084074,1748992248285,-151.0,0.00024151,7]
[364084076,1748992248295,-151.0,0.00024151,7]
[364084078,1748992248305,-151.0,0.00024151,7]
[364084080,1748992248315,-151.0,0.00024151,7]
[364084082,1748992248324,-151.0,0.00024151,7]
[364084084,1748992248334,-207.40239,0.00024151,7]
[364084086,1748992248344,-500.0,0.00024155,2]
[364084088,1748992248353,-223.539625,0.00024155,7]
[364084090,1748992248363,-151.0,0.00024155,7]
[364084092,1748992248372,-151.0,0.00024155,7]
[364084094,1748992248383,-151.0,0.00024155,7]
[364084096,1748992248393,-151.0,0.00024155,7]
[364084098,1748992248405,-151.0,0.00024155,7]
[364084100,1748992248415,-151.0,0.00024155,7]
[364084102,1748992248426,-151.0,0.00024155,7]
[364084104,1748992248437,-173.34706,0.00024155,7]
[364084106,1748992248447,-151.0,0.00024155,7]
[364084108,1748992248457,-151.0,0.00024155,7]
[364084110,1748992248467,-151.0,0.00024155,7]
[364084112,1748992248478,-151.0,0.00024155,7]
[364084114,1748992248488,-151.0,0.00024155,7]
[364084116,1748992248498,-151.0,0.00024155,7]
[364084117,1748992248509,-151.0,0.00024155,7]
[364084119,1748992248519,-151.0,0.00024155,7]
[364084121,1748992248529,-151.0,0.00024155,7]
[364084123,1748992248538,-151.0,0.00024155,7]
[364084125,1748992248547,-151.0,0.00024155,7]
[364084127,1748992248556,-151.0,0.00024155,7]
[364084129,1748992248566,-151.0,0.00024155,7]
[364084131,1748992248575,-151.0,0.00024155,7]
[364084133,1748992248585,-151.0,0.00024155,7]
[364084135,1748992248596,-151.0,0.00024155,7]
[364084137,1748992248606,-151.0,0.00024155,7]
[364084138,1748992248615,-151.0,0.00024155,7]
[364084140,1748992248625,-151.0,0.00024155,7]
[364084142,1748992248635,-156.953898,0.00024155,7]
[364084144,1748992248644,-261.059601,0.00024155,7]
[364084146,1748992248654,-151.0,0.00024155,7]
[364084148,1748992248663,-151.0,0.00024155,7]
[364084150,1748992248673,-151.0,0.00024155,7]
[364084152,1748992248682,-151.0,0.00024155,7]
[364084154,1748992248692,-151.0,0.00024155,7]
[364084156,1748992248702,-151.0,0.00024155,7]
[364084158,1748992248711,-151.0,0.00024155,7]
[364084159,1748992248722,-151.0,0.00024155,7]
[364084161,1748992248735,-151.0,0.00024155,7]
[364084163,1748992248746,-151.0,0.00024155,7]
[364084165,1748992248755,-288.154441,0.00024155,7]
[364084167,1748992248766,-151.0,0.00024155,7]
[364084169,1748992248775,-307.55,0.00024155,7]
[364084171,1748992248785,-307.55,0.00024155,7]
[364084173,1748992248795,-307.55,0.00024155,7]
[364084175,1748992248807,-307.55,0.00024155,7]
[364084177,1748992248816,-307.55,0.00024155,7]
[364084179,1748992248826,-307.55,0.00024155,7]
[364084180,1748992248835,-307.55,0.00024155,7]
[364084182,1748992248845,-307.55,0.00024155,7]
[364084184,1748992248859,-307.55,0.00024155,7]
[364084186,1748992248869,-307.55,0.00024155,7]
[364084188,1748992248880,-307.55,0.00024155,7]
[364084190,1748992248891,-307.55,0.00024155,7]
[364084192,1748992248901,-307.55,0.00024155,7]
[364084195,1748992248912,-307.55,0.00024155,7]
[364084196,1748992248921,-307.55,0.00024155,7]
[364084198,1748992248931,-307.55,0.00024155,7]
[364084200,1748992248941,-307.55,0.00024155,7]
[364084202,1748992248950,-307.55,0.00024155,7]
[364084204,1748992248960,-307.55,0.00024155,7]
[364084206,1748992248970,-307.55,0.00024155,7]
[364084208,1748992248981,-151.0,0.00024155,7]
[364084210,1748992248990,-157.945674,0.00024155,7]
[364084212,1748992249000,-151.0,0.00024155,7]
[364084214,1748992249010,-239.9581,0.00024155,7]
[364084216,1748992249020,-239.9581,0.00024155,7]
[364084218,1748992249030,-239.9581,0.00024155,7]
[364084220,1748992249040,-239.9581,0.00024155,7]
[364084222,1748992249049,-239.9581,0.00024155,7]
[364084223,1748992249060,-239.9581,0.00024155,7]
[364084225,1748992249069,-239.9581,0.00024155,7]
[364084227,1748992249080,-239.9581,0.00024155,7]
[364084229,1748992249091,-239.9581,0.00024155,7]
[364084241,1748992249197,-239.9581,0.00024155,7]
[364084243,1748992249208,-239.9581,0.00024155,7]
[364084245,1748992249218,-239.9581,0.00024155,7]
[364084247,1748992249228,-239.9581,0.00024155,7]
[364084249,1748992249238,-239.9581,0.00024155,7]
[364084251,1748992249248,-239.9581,0.00024155,7]
[364084253,1748992249258,-239.9581,0.00024155,7]
[364084255,1748992249268,-239.9581,0.00024155,7]
[364084257,1748992249278,-239.9581,0.00024155,7]
[364084259,1748992249287,-239.9581,0.00024155,7]
[364084260,1748992249297,-239.958093,0.00024155,7]
[364084262,1748992249307,-151.0,0.00024155,7]
[364084264,1748992249317,-151.0,0.00024155,7]
[364084266,1748992249326,-151.0,0.00024155,7]
[364084268,1748992249336,-151.0,0.00024155,7]
[364084270,1748992249346,-151.0,0.00024155,7]
[364084272,1748992249355,-151.0,0.00024155,7]
[364084274,1748992249366,-209.623914,0.00024155,2]
[364084276,1748992249376,-151.0,0.00024155,7]
[364084278,1748992249386,-151.0,0.00024155,7]
[364084280,1748992249395,-151.0,0.00024155,7]
[364084282,1748992249405,-151.0,0.00024155,7]
[364084284,1748992249415,-151.0,0.00024155,7]
[364084286,1748992249425,-151.0,0.00024155,7]
[364084288,1748992249435,-151.0,0.00024155,7]
[364084290,1748992249445,-151.0,0.00024155,7]
[364084292,1748992249455,-151.0,0.00024155,7]
[364084294,1748992249465,-59551.96761931,0.00024164,2]
[364084296,1748992249475,-22637.99527515,0.00024164,3]
[364084298,1748992249485,-281354.52742521,0.00024164,20]
[364084301,1748992249505,-539.75193259,0.00024164,20]
[364084303,1748992249517,-488.21083602,0.00024164,20]
[364084308,1748992249555,-9646.70419172,0.00024164,20]
[364084310,1748992249566,-9636.21941732,0.00024164,20]
[364084313,1748992249577,-938.02957711,0.00024164,20]
[364084315,1748992249588,-21099.65428477,0.00024164,20]
[364084318,1748992249611,-553.36,0.00016438,2]
[364084320,1748992249620,-416.81704989,0.00016438,2]
[364084322,1748992249629,-97.77785069,0.00024164,20]
[364084324,1748992249641,-438.49886267,0.00024164,20]
[364084326,1748992249653,-810.27166094,0.00024164,20]
[364084329,1748992249666,-507.81705216,0.00024164,20]
[364084331,1748992249677,-1365.28998582,0.00024164,20]
[364084333,1748992249689,-2157.79455336,0.00024164,20]
[364084335,1748992249701,-160676.15071287,0.00024164,20]
[364084337,1748992249712,-7519.56825467,0.00024164,20]
[364084341,1748992249745,-440.0,0.00016438,2]
[364084343,1748992249755,-28.942,0.00016712,2]
[364084345,1748992249768,-411.058,0.00016712,2]
[364084347,1748992249778,-178.41664428,0.00023178,2]
[364084349,1748992249790,-186.09412162,0.00023178,2]
[364084351,1748992249800,-158.5442955,0.00023315,2]
[364084353,1748992249810,-9352.89673853,0.00024164,20]
[364084355,1748992249823,-4885.35450368,0.00024164,20]
[364086078,1748992803876,-190.06335572,0.0001552,2]
[364086079,1748992807588,-187.34903645,0.0001552,2]
[364086080,1748992811106,-233.70857938,0.0001552,2]
[364086081,1748992815877,-242.96843892,0.0001552,2]
[364086082,1748992818041,-162.77430179,0.0001552,2]
[364086083,1748992824175,5000.0,0.0001551,2]
[364086084,1748992828697,-335.09127445,0.0001552,2]
[364086085,1748992831056,-231.03253923,0.0001552,2]
[364086086,1748992832895,-514.91054559,0.0001552,2]
[364086087,1748992834655,-223.13683407,0.0001552,2]
[364086088,1748992839799,895.13578557,0.0001551,2]
[364086089,1748992840413,-380.70569851,0.0001552,2]
[364086090,1748992842000,-207.46501073,0.0001552,2]
[364086091,1748992847108,-272.83057873,0.00015519,2]
[364086092,1748992849333,-27.16942127,0.00015519,2]
[364086093,1748992849357,-131.85459961,0.0001552,2]
[364086094,1748992850899,-318.69192036,0.0001552,2]
[364086095,1748992855443,-258.82654172,0.0001552,2]
[364086096,1748992858129,-300.0,0.0001552,2]
[364086097,1748992863768,-195.08886055,0.0001552,2]
[364086098,1748992865358,-436.62784084,0.0001552,2]
[364086099,1748992872982,-201.85554784,0.0001552,2]
[364086100,1748992874563,-155.3670742,0.0001552,2]
[364086101,1748992879857,-179.90955412,0.0001552,2]
[364086102,1748992882399,-276.49783186,0.0001552,2]
[364086103,1748992898431,-262.29171518,0.0001552,2]
[364086104,1748992903732,-261.26600596,0.0001552,2]
[364086105,1748992905998,-178.14460889,0.0001552,2]
[364086106,1748992913016,-200.06862657,0.0001552,2]
[364086107,1748992920447,-158.96908279,0.0001552,2]
[364086108,1748992923301,-164.58,0.0001552,2]
[364086109,1748992927758,-164.17030852,0.0001552,2]
[364086110,1748992929357,-154.47117081,0.0001552,2]
[364086111,1748992935705,-189.85300442,0.0001552,2]
[364086112,1748992937907,-270.12733927,0.0001552,2]
[364086113,1748992943446,344.32417523,0.0001551,2]
[364086114,1748992944278,-250.10316564,0.0001552,2]
[364086115,1748992945921,-153.56906213,0.0001552,2]
[364086116,1748992953672,-263.78878398,0.0001552,2]
[364086117,1748992955279,-156.63888565,0.0001552,2]
[364086118,1748992956904,-157.90957491,0.0001552,2]
[364086119,1748992959142,1094.22723667,0.0001551,2]
[364086120,1748992959654,-173.52088538,0.0001552,2]
[364086121,1748992962205,-301.72121819,0.0001552,2]
[364086122,1748992967941,-191.71790609,0.0001552,2]
[364086123,1748992969979,-165.5994632,0.0001552,2]
[364086125,1748992974464,633.15167848,0.0001551,2]
[364086126,1748992975710,-156.25836761,0.0001552,2]
[364086127,1748992977859,-188.41772303,0.0001552,2]
[364086129,1748992983735,-151.0,0.0001552,2]
[364086130,1748992985369,-167.63124263,0.0001552,2]
[364086131,1748992988073,-432.0,0.0001552,2]
[364086132,1748992992301,-167.347726,0.0001552,2]
[364086133,1748992998485,-262.40209256,0.0001552,2]
[364086134,1748993000680,-204.12473162,0.0001552,2]
[364086135,1748993006742,-255.11607998,0.0001552,2]
[364086136,1748993008393,-306.82480709,0.0001552,2]
[364086137,1748993011262,-151.98457739,0.0001552,2]
[364086138,1748993014237,-233.52,0.0001552,2]
[364086139,1748993017717,-239.91861245,0.0001552,2]
[364086140,1748993018622,5000.0,0.0001551,2]
[364086141,1748993020463,-157.41593566,0.0001552,2]
[364086142,1748993023807,-274.17565489,0.0001552,2]
[364086143,1748993026597,-212.0045471,0.0001552,2]
[364086144,1748993031844,-304.58858504,0.0001552,2]
[364086145,1748993033881,5000.0,0.0001551,2]
[364086146,1748993033910,-181.86573826,0.0001552,2]
[364086147,1748993038206,-224.536575,0.0001552,2]
[364086148,1748993040408,-342.45150672,0.0001552,2]
[364086149,1748993041999,-112.98687724,0.0001552,2]
[364086150,1748993042025,-148.83562182,0.0001552,2]
[364086152,1748993047035,-88.21415885,0.0001552,2]
[364086153,1748993049096,5000.0,0.0001551,2]
[364086154,1748993049135,-180.10178005,0.0001552,2]
[364086155,1748993053292,-39.73804449,0.0001552,2]
[364086156,1748993054934,-153.010433,0.0001552,2]
[364086158,1748993056538,-22.86142663,0.0001552,2]
[364086159,1748993057509,151.0,0.0001552,2]
[364086160,1748993074445,191.0,0.00024657,120]
[364086164,1748993159381,4451.3709774,0.00015402,2]
[364086186,1748993242020,-152.0,0.00015604,2]
[364086189,1748993244632,-59.35794676,0.00015604,2]
[364086193,1748993263694,-5000.0,0.00015972,2]
[364086195,1748993289203,284.199589,0.00015355,2]
[364086206,1748993318225,1208.0,0.0002,120]
[364086213,1748993332447,-1900.0,0.00015972,2]
[364086219,1748993379830,272.74896,0.00013699,2]
[364086222,1748993405777,459.2408116,0.00015485,2]
[364086237,1748993432872,-3100.0,0.00015972,2]
[364086239,1748993432884,-207.05840928,0.00016133,2]
[364086241,1748993432893,-164.90024098,0.00016249,2]
[364086243,1748993432903,-179.88780656,0.00016338,2]
[364086245,1748993432913,-1200.0,0.00016346,2]
[364086247,1748993432922,-300.0,0.00016347,2]
[364086249,1748993432932,-300.0,0.00016347,2]
[364086251,1748993432941,-300.0,0.00016347,2]
[364086253,1748993432951,-300.0,0.00016347,2]
[364086255,1748993432960,-300.0,0.00016347,2]
[364086257,1748993432970,-1000.98380144,0.0001635,7]
[364086259,1748993432980,-1000.98380144,0.0001635,7]
[364086261,1748993432991,-1000.98380144,0.0001635,2]
[364086263,1748993433000,-1000.98380144,0.0001635,2]
[364086265,1748993433010,-430.0,0.00016438,2]
[364086267,1748993433019,-319.74956293,0.00016438,2]
[364086269,1748993433028,-440.0,0.00016438,2]
[364086271,1748993433038,-440.0,0.00016438,2]
[364086273,1748993433048,-440.0,0.00016438,2]
[364086275,1748993433057,-400.0,0.00016438,2]
[364086277,1748993433066,-440.0,0.00016438,2]
[364086279,1748993433077,-440.0,0.00016438,2]
[364086281,1748993433087,-420.0,0.00016438,2]
[364086283,1748993433097,-161.81875033,0.00016438,2]
[364086285,1748993433106,-440.0,0.00016438,2]
[364086287,1748993433116,-440.0,0.00016438,2]
[364086289,1748993433125,-440.0,0.00016438,2]
[364086291,1748993433134,-440.0,0.00016438,2]
[364086293,1748993433144,-440.0,0.00016438,2]
[364086295,1748993433157,-440.0,0.00016438,2]
[364086297,1748993433166,-440.0,0.00016438,2]
[364086299,1748993433177,-511.92273979,0.00016438,2]
[364086301,1748993433187,-440.0,0.00016438,2]
[364086303,1748993433197,-440.0,0.00016438,2]
[364086306,1748993433207,-440.0,0.00016438,2]
[364086308,1748993433217,-440.0,0.00016438,2]
[364086309,1748993433226,-410.0,0.00016438,2]
[364086311,1748993433236,-440.0,0.00016438,2]
[364086313,1748993433247,-440.0,0.00016438,2]
[364086315,1748993433256,-410.0,0.00016438,2]
[364086317,1748993433266,-440.0,0.00016438,2]
[364086320,1748993433276,-347.8405064,0.00016438,2]
[364086322,1748993433286,-381.76793635,0.00016438,2]
[364086324,1748993433296,-440.0,0.00016438,2]
[364086326,1748993433305,-365.61,0.00016438,2]
[364086328,1748993433314,-440.0,0.00016438,2]
[364086330,1748993433324,-440.0,0.00016438,2]
[364086332,1748993433333,-440.0,0.00016438,2]